[Event "Late-Titled-Tuesday-Blitz-August-29-2023"]
[Site "Chess.com"]
[Date "2023.08.29"]
[Round "2"]
[White "Apocalyps999"]
[Black "Fh2411"]
[Result "0-1"]
[WhiteElo "2331"]
[BlackElo "2632"]
[TimeControl "180+1"]
[EndTime "14:19:49 PDT"]
[Termination "Fh2411 won by checkmate"]

1. e4 {[%clk 0:03:00.9]} 1... c6 {[%clk 0:02:58.7]} 2. c4 {[%clk 0:03:00.7]}
2... e5 {[%clk 0:02:57.1]} 3. Nf3 {[%clk 0:02:58.5]} 3... d6 {[%clk 0:02:57.6]}
4. d4 {[%clk 0:02:55.1]} 4... Nd7 {[%clk 0:02:58.1]} 5. Nc3 {[%clk 0:02:55.4]}
5... Ngf6 {[%clk 0:02:58.4]} 6. Be3 {[%clk 0:02:54.8]} 6... Be7 {[%clk
0:02:58.7]} 7. h3 {[%clk 0:02:55.2]} 7... O-O {[%clk 0:02:58.6]} 8. Be2 {[%clk
0:02:55.6]} 8... a6 {[%clk 0:02:53.6]} 9. d5 {[%clk 0:02:51.1]} 9... c5 {[%clk
0:02:50.5]} 10. Nd2 {[%clk 0:02:48.4]} 10... Ne8 {[%clk 0:02:34.9]} 11. f3
{[%clk 0:02:46.5]} 11... Bh4+ {[%clk 0:02:31.3]} 12. Kf1 {[%clk 0:02:42.9]}
12... f5 {[%clk 0:02:25.2]} 13. exf5 {[%clk 0:02:38.7]} 13... Rxf5 {[%clk
0:02:21]} 14. Nde4 {[%clk 0:02:38.3]} 14... Nf8 {[%clk 0:02:15.7]} 15. g3 {[%clk
0:02:34.3]} 15... Be7 {[%clk 0:02:12.2]} 16. Kg2 {[%clk 0:02:24.2]} 16... Rf7
{[%clk 0:02:09.8]} 17. a3 {[%clk 0:02:15]} 17... h6 {[%clk 0:02:08.2]} 18. b4
{[%clk 0:02:12.9]} 18... b6 {[%clk 0:02:08]} 19. Qb3 {[%clk 0:01:55]} 19... Nf6
{[%clk 0:02:02.6]} 20. Rab1 {[%clk 0:01:34.6]} 20... Nxe4 {[%clk 0:01:46]} 21.
Nxe4 {[%clk 0:01:32.3]} 21... Bf5 {[%clk 0:01:45.4]} 22. bxc5 {[%clk 0:00:59.3]}
22... bxc5 {[%clk 0:01:35.6]} 23. Qb6 {[%clk 0:00:46.6]} 23... Bxe4 {[%clk
0:00:59.7]} 24. fxe4 {[%clk 0:00:38.6]} 24... Bg5 {[%clk 0:00:59.9]} 25. Qxd8
{[%clk 0:00:36.3]} 25... Rxd8 {[%clk 0:01:00.2]} 26. Bxg5 {[%clk 0:00:35.5]}
26... hxg5 {[%clk 0:01:00.1]} 27. Rb6 {[%clk 0:00:35.3]} 27... Nh7 {[%clk
0:00:51.5]} 28. Bg4 {[%clk 0:00:30.7]} 28... Ra7 {[%clk 0:00:48.3]} 29. Rhb1
{[%clk 0:00:23.6]} 29... Nf6 {[%clk 0:00:48.3]} 30. Bf5 {[%clk 0:00:20.6]} 30...
a5 {[%clk 0:00:35.5]} 31. Rb7 {[%clk 0:00:20.9]} 31... Rda8 {[%clk 0:00:25.2]}
32. Rxa7 {[%clk 0:00:18.7]} 32... Rxa7 {[%clk 0:00:26.1]} 33. a4 {[%clk
0:00:19]} 33... Kf7 {[%clk 0:00:25.4]} 34. Rb6 {[%clk 0:00:19]} 34... Ke7 {[%clk
0:00:24.9]} 35. h4 {[%clk 0:00:18.8]} 35... gxh4 {[%clk 0:00:24.5]} 36. gxh4
{[%clk 0:00:19.7]} 36... Nh5 {[%clk 0:00:23.6]} 37. Kf3 {[%clk 0:00:19.8]} 37...
Nf4 {[%clk 0:00:24]} 38. Rb8 {[%clk 0:00:19.2]} 38... g6 {[%clk 0:00:21.3]} 39.
Bg4 {[%clk 0:00:18.2]} 39... Nd3 {[%clk 0:00:16.6]} 40. Rg8 {[%clk 0:00:17.7]}
40... Kf6 {[%clk 0:00:15.9]} 41. h5 {[%clk 0:00:14.8]} 41... gxh5 {[%clk
0:00:15.7]} 42. Bxh5 {[%clk 0:00:15.7]} 42... Nf4 {[%clk 0:00:14.3]} 43. Bg4
{[%clk 0:00:15.2]} 43... Rb7 {[%clk 0:00:14.1]} 44. Rh8 {[%clk 0:00:13.2]} 44...
Rb3+ {[%clk 0:00:13.6]} 45. Kf2 {[%clk 0:00:13.7]} 45... Rb4 {[%clk 0:00:14.2]}
46. Bd1 {[%clk 0:00:12.7]} 46... Rxc4 {[%clk 0:00:14.3]} 47. Rd8 {[%clk
0:00:13.1]} 47... Ke7 {[%clk 0:00:14.1]} 48. Ra8 {[%clk 0:00:13.6]} 48... Rxe4
{[%clk 0:00:14.5]} 49. Rxa5 {[%clk 0:00:12.4]} 49... Nxd5 {[%clk 0:00:14.6]} 50.
Bf3 {[%clk 0:00:12.2]} 50... Rf4 {[%clk 0:00:14.9]} 51. Kg3 {[%clk 0:00:12]}
51... Nb4 {[%clk 0:00:12]} 52. Ra7+ {[%clk 0:00:11.6]} 52... Kf6 {[%clk
0:00:12.4]} 53. Rh7 {[%clk 0:00:12.5]} 53... Rd4 {[%clk 0:00:11.2]} 54. a5
{[%clk 0:00:12.3]} 54... Rd3 {[%clk 0:00:10.6]} 55. Kf2 {[%clk 0:00:11.3]} 55...
Ra3 {[%clk 0:00:10.9]} 56. Rh6+ {[%clk 0:00:09.9]} 56... Ke7 {[%clk 0:00:11.4]}
57. Rh7+ {[%clk 0:00:10.5]} 57... Kf6 {[%clk 0:00:10.1]} 58. Ra7 {[%clk
0:00:10.9]} 58... d5 {[%clk 0:00:08.7]} 59. Rc7 {[%clk 0:00:08.6]} 59... e4
{[%clk 0:00:08.8]} 60. Be2 {[%clk 0:00:08.3]} 60... Rxa5 {[%clk 0:00:08]} 61.
Rh7 {[%clk 0:00:08.7]} 61... Ke5 {[%clk 0:00:08.9]} 62. Rh5+ {[%clk 0:00:08.9]}
62... Kd4 {[%clk 0:00:09.8]} 63. Rh4 {[%clk 0:00:08.9]} 63... Ra2 {[%clk
0:00:09.9]} 64. Rh5 {[%clk 0:00:08.1]} 64... Nd3+ {[%clk 0:00:10.3]} 65. Kf1
{[%clk 0:00:07.9]} 65... c4 {[%clk 0:00:10]} 66. Bxd3 {[%clk 0:00:07.8]} 66...
cxd3 {[%clk 0:00:10.9]} 67. Ke1 {[%clk 0:00:08.2]} 67... Ra1+ {[%clk 0:00:10.5]}
68. Kd2 {[%clk 0:00:09.1]} 68... e3# {[%clk 0:00:10.9]} 0-1

[Event "Late-Titled-Tuesday-Blitz-August-29-2023"]
[Site "Chess.com"]
[Date "2023.08.29"]
[Round "2"]
[White "JerMorGurgeh"]
[Black "azikom"]
[Result "0-1"]
[WhiteElo "2413"]
[BlackElo "2695"]
[TimeControl "180+1"]
[EndTime "14:19:55 PDT"]
[Termination "azikom won on time"]

1. d4 {[%clk 0:02:58.1]} 1... d5 {[%clk 0:02:59]} 2. Nf3 {[%clk 0:02:57.6]} 2...
Bf5 {[%clk 0:02:57.7]} 3. c4 {[%clk 0:02:57]} 3... e6 {[%clk 0:02:57.6]} 4. Qb3
{[%clk 0:02:54.8]} 4... Nc6 {[%clk 0:02:57.2]} 5. c5 {[%clk 0:02:54]} 5... Rb8
{[%clk 0:02:53.5]} 6. Bf4 {[%clk 0:02:47.6]} 6... Nf6 {[%clk 0:02:49.2]} 7. e3
{[%clk 0:02:45.6]} 7... a6 {[%clk 0:02:48.7]} 8. Qa4 {[%clk 0:02:36.5]} 8... Nd7
{[%clk 0:02:43.5]} 9. b4 {[%clk 0:02:23.5]} 9... Be7 {[%clk 0:02:42.5]} 10. h3
{[%clk 0:02:20.9]} 10... O-O {[%clk 0:02:41.6]} 11. Nc3 {[%clk 0:02:17.6]} 11...
Bf6 {[%clk 0:02:38.5]} 12. Rd1 {[%clk 0:02:11.6]} 12... h6 {[%clk 0:02:37.1]}
13. Be2 {[%clk 0:02:09.4]} 13... Re8 {[%clk 0:02:32.1]} 14. Qb3 {[%clk 0:02:08]}
14... Ra8 {[%clk 0:02:20.6]} 15. a4 {[%clk 0:02:06.9]} 15... a5 {[%clk
0:02:20.4]} 16. b5 {[%clk 0:02:03.7]} 16... Nb4 {[%clk 0:02:20.5]} 17. Rd2
{[%clk 0:01:58.4]} 17... c6 {[%clk 0:02:20.2]} 18. Na2 {[%clk 0:01:44.9]} 18...
Nxa2 {[%clk 0:02:18.9]} 19. Qxa2 {[%clk 0:01:44.6]} 19... e5 {[%clk 0:02:19.6]}
20. dxe5 {[%clk 0:01:39]} 20... Nxe5 {[%clk 0:02:20.5]} 21. O-O {[%clk
0:01:25.6]} 21... Nxf3+ {[%clk 0:02:20.1]} 22. Bxf3 {[%clk 0:01:24.1]} 22... Bc3
{[%clk 0:02:14.6]} 23. Rdd1 {[%clk 0:01:16.9]} 23... Bb4 {[%clk 0:02:14.2]} 24.
Bd6 {[%clk 0:01:15.2]} 24... Be4 {[%clk 0:02:13.9]} 25. Bxe4 {[%clk 0:01:12.5]}
25... Rxe4 {[%clk 0:02:14.8]} 26. Rd4 {[%clk 0:01:09.1]} 26... Qe8 {[%clk
0:02:08.9]} 27. b6 {[%clk 0:00:58.2]} 27... Rxd4 {[%clk 0:02:06.2]} 28. exd4
{[%clk 0:00:57.1]} 28... Qe4 {[%clk 0:02:06.4]} 29. Qb2 {[%clk 0:00:49.1]} 29...
Re8 {[%clk 0:02:05.7]} 30. Rd1 {[%clk 0:00:44.5]} 30... Qe2 {[%clk 0:02:04.8]}
31. Qb3 {[%clk 0:00:38.4]} 31... Re4 {[%clk 0:01:57.2]} 32. Qd3 {[%clk
0:00:31.1]} 32... Qxd3 {[%clk 0:01:56.2]} 33. Rxd3 {[%clk 0:00:30.4]} 33... f5
{[%clk 0:01:49.5]} 34. f3 {[%clk 0:00:28.1]} 34... Re2 {[%clk 0:01:46.3]} 35.
Kf1 {[%clk 0:00:23.1]} 35... Re1+ {[%clk 0:01:45.4]} 36. Kf2 {[%clk 0:00:22.9]}
36... Kf7 {[%clk 0:01:18.8]} 37. Re3 {[%clk 0:00:20.4]} 37... Rxe3 {[%clk
0:01:17.9]} 38. Kxe3 {[%clk 0:00:20.4]} 38... g6 {[%clk 0:01:16.7]} 39. g4
{[%clk 0:00:19.8]} 39... Ke6 {[%clk 0:01:13.2]} 40. Bf4 {[%clk 0:00:18.8]} 40...
h5 {[%clk 0:01:12.5]} 41. gxh5 {[%clk 0:00:17.3]} 41... gxh5 {[%clk 0:01:13.4]}
42. h4 {[%clk 0:00:16.6]} 42... Ba3 {[%clk 0:01:08.9]} 43. Bg3 {[%clk
0:00:14.2]} 43... Bc1+ {[%clk 0:01:08]} 44. Kd3 {[%clk 0:00:14.2]} 44... Bh6
{[%clk 0:00:13.1]} 45. Be1 {[%clk 0:00:13.4]} 45... Bf4 {[%clk 0:00:11.9]} 46.
Bxa5 {[%clk 0:00:11.1]} 46... Bg3 {[%clk 0:00:11]} 47. Bd2 {[%clk 0:00:10.8]}
47... Bxh4 {[%clk 0:00:06.5]} 48. a5 {[%clk 0:00:10.7]} 48... Kd7 {[%clk
0:00:06.6]} 49. Bf4 {[%clk 0:00:09.4]} 49... Kc8 {[%clk 0:00:06.2]} 50. Ke3
{[%clk 0:00:07.5]} 50... Bf6 {[%clk 0:00:05.3]} 51. Be5 {[%clk 0:00:07.2]} 51...
Bg5+ {[%clk 0:00:05.1]} 52. f4 {[%clk 0:00:06.4]} 52... Bh4 {[%clk 0:00:04.7]}
53. Kf3 {[%clk 0:00:06.4]} 53... Be1 {[%clk 0:00:04.5]} 54. Kg2 {[%clk
0:00:06.3]} 54... Bxa5 {[%clk 0:00:04.1]} 55. Kh3 {[%clk 0:00:06.2]} 55... Be1
{[%clk 0:00:04.6]} 56. Bf6 {[%clk 0:00:05.6]} 56... Kd7 {[%clk 0:00:04.7]} 57.
Be5 {[%clk 0:00:06.3]} 57... Bf2 {[%clk 0:00:04.7]} 58. Kg2 {[%clk 0:00:04]}
58... Be1 {[%clk 0:00:04.8]} 59. Kh3 {[%clk 0:00:04.9]} 59... Ke6 {[%clk
0:00:04.3]} 60. Kg2 {[%clk 0:00:04.9]} 60... Bh4 {[%clk 0:00:04.1]} 61. Kh3
{[%clk 0:00:05.5]} 61... Be7 {[%clk 0:00:04]} 62. Kg2 {[%clk 0:00:06]} 62... Bh4
{[%clk 0:00:04.1]} 63. Kh3 {[%clk 0:00:05.8]} 63... Be1 {[%clk 0:00:04.5]} 64.
Kg2 {[%clk 0:00:05.3]} 64... h4 {[%clk 0:00:05.1]} 65. Kh3 {[%clk 0:00:05.2]}
65... Bg3 {[%clk 0:00:05]} 66. Bc7 {[%clk 0:00:03.8]} 66... Kf7 {[%clk
0:00:04.7]} 67. Be5 {[%clk 0:00:03.1]} 67... Kg6 {[%clk 0:00:04.7]} 68. Bd6
{[%clk 0:00:03.3]} 68... Kh5 {[%clk 0:00:05]} 69. Be5 {[%clk 0:00:04]} 69... Bf2
{[%clk 0:00:05.3]} 70. Bf6 {[%clk 0:00:03.5]} 70... Be3 {[%clk 0:00:05]} 71. Be5
{[%clk 0:00:03.6]} 71... Bd2 {[%clk 0:00:05.3]} 72. Bd6 {[%clk 0:00:02.7]} 72...
Bc1 {[%clk 0:00:05.7]} 73. Be5 {[%clk 0:00:02.7]} 73... Be3 {[%clk 0:00:06.2]}
0-1

[Event "Late-Titled-Tuesday-Blitz-August-29-2023"]
[Site "Chess.com"]
[Date "2023.08.29"]
[Round "2"]
[White "vincentmasuka"]
[Black "Fandorine"]
[Result "1/2-1/2"]
[WhiteElo "2615"]
[BlackElo "2928"]
[TimeControl "180+1"]
[EndTime "14:20:25 PDT"]
[Termination "Game drawn by agreement"]

1. c4 {[%clk 0:03:00.9]} 1... e5 {[%clk 0:02:58.9]} 2. g3 {[%clk 0:03:00.7]}
2... d5 {[%clk 0:02:55.9]} 3. cxd5 {[%clk 0:02:59.2]} 3... Qxd5 {[%clk
0:02:56.8]} 4. Nf3 {[%clk 0:02:57.6]} 4... Nc6 {[%clk 0:02:57.1]} 5. Nc3 {[%clk
0:02:56.7]} 5... Qd8 {[%clk 0:02:57]} 6. Bg2 {[%clk 0:02:55.6]} 6... Nf6 {[%clk
0:02:57.2]} 7. O-O {[%clk 0:02:49.1]} 7... h6 {[%clk 0:02:43.2]} 8. b4 {[%clk
0:02:39.3]} 8... e4 {[%clk 0:02:26.2]} 9. Ne1 {[%clk 0:02:36.7]} 9... Bxb4
{[%clk 0:02:24.6]} 10. Nxe4 {[%clk 0:02:33.1]} 10... Nxe4 {[%clk 0:02:22.1]} 11.
Bxe4 {[%clk 0:02:34]} 11... Qe7 {[%clk 0:02:20.5]} 12. Bg2 {[%clk 0:02:19.6]}
12... O-O {[%clk 0:02:20.8]} 13. Bb2 {[%clk 0:02:16.5]} 13... Bg4 {[%clk
0:02:19.4]} 14. Nf3 {[%clk 0:02:15.7]} 14... Rad8 {[%clk 0:02:18.5]} 15. Qb3
{[%clk 0:02:11.8]} 15... Rfe8 {[%clk 0:02:01.1]} 16. Rfe1 {[%clk 0:02:07.1]}
16... Be6 {[%clk 0:02:00.1]} 17. Qa4 {[%clk 0:02:01]} 17... a6 {[%clk
0:01:51.9]} 18. Rab1 {[%clk 0:01:53.4]} 18... Bd5 {[%clk 0:01:26.8]} 19. e4
{[%clk 0:01:37.7]} 19... Bc4 {[%clk 0:01:19.9]} 20. Bc3 {[%clk 0:01:34.6]} 20...
Bxc3 {[%clk 0:01:10.3]} 21. dxc3 {[%clk 0:01:35.5]} 21... Bb5 {[%clk 0:01:08.8]}
22. Qb3 {[%clk 0:01:35.4]} 22... Ne5 {[%clk 0:01:00.3]} 23. Nd4 {[%clk
0:01:29.9]} 23... Bd3 {[%clk 0:00:50.9]} 24. Rbd1 {[%clk 0:01:22.6]} 24... c5
{[%clk 0:00:48]} 25. Nf5 {[%clk 0:01:17.6]} 25... Qc7 {[%clk 0:00:44.7]} 26. h3
{[%clk 0:01:05.7]} 26... b5 {[%clk 0:00:40.8]} 27. f4 {[%clk 0:01:04.3]} 27...
Bc4 {[%clk 0:00:40.3]} 28. Qc2 {[%clk 0:01:00]} 28... Nd3 {[%clk 0:00:25.8]} 29.
Re3 {[%clk 0:00:59.5]} 29... Nxf4 {[%clk 0:00:26.4]} 30. gxf4 {[%clk 0:00:58.9]}
30... Qxf4 {[%clk 0:00:27]} 31. Rde1 {[%clk 0:00:53.9]} 31... g6 {[%clk
0:00:20.6]} 32. Rf3 {[%clk 0:00:53]} 32... Qd2 {[%clk 0:00:20.8]} 33. Qxd2
{[%clk 0:00:51.1]} 33... Rxd2 {[%clk 0:00:21.7]} 34. Nxh6+ {[%clk 0:00:51.1]}
34... Kg7 {[%clk 0:00:22.3]} 35. Ng4 {[%clk 0:00:48.9]} 35... Bxa2 {[%clk
0:00:20]} 36. e5 {[%clk 0:00:44.9]} 36... b4 {[%clk 0:00:19]} 37. cxb4 {[%clk
0:00:39.6]} 37... cxb4 {[%clk 0:00:19.9]} 38. Re4 {[%clk 0:00:32.1]} 38... a5
{[%clk 0:00:12.1]} 39. Nf6 {[%clk 0:00:30.7]} 39... Rc8 {[%clk 0:00:12.2]} 40.
Rh4 {[%clk 0:00:30.3]} 40... Rh8 {[%clk 0:00:08.7]} 41. Rxh8 {[%clk 0:00:29.1]}
41... Kxh8 {[%clk 0:00:09.6]} 42. Rf4 {[%clk 0:00:29.3]} 42... g5 {[%clk
0:00:09.4]} 43. Rf5 {[%clk 0:00:28]} 43... Bb1 {[%clk 0:00:07.7]} 44. Rxg5
{[%clk 0:00:27.6]} 44... Bg6 {[%clk 0:00:08.4]} 45. e6 {[%clk 0:00:24.6]} 45...
Re2 {[%clk 0:00:07.7]} 46. exf7 {[%clk 0:00:21.7]} 46... Bxf7 {[%clk 0:00:07.5]}
47. Rxa5 {[%clk 0:00:19.6]} 47... b3 {[%clk 0:00:06.7]} 48. Rb5 {[%clk
0:00:19.5]} 48... b2 {[%clk 0:00:06.9]} 49. Kh2 {[%clk 0:00:19]} 49... Kg7
{[%clk 0:00:05.8]} 50. Ng4 {[%clk 0:00:18.2]} 50... Bd5 {[%clk 0:00:06.4]} 51.
Rxb2 {[%clk 0:00:06]} 51... Rxb2 {[%clk 0:00:06.2]} 52. Ne3 {[%clk 0:00:06.8]}
52... Be4 {[%clk 0:00:05.6]} 53. Kg3 {[%clk 0:00:06.7]} 53... Bg6 {[%clk
0:00:05]} 54. Ng4 {[%clk 0:00:06.3]} 54... Rb3+ {[%clk 0:00:04.8]} 55. Bf3
{[%clk 0:00:06.9]} 55... Be4 {[%clk 0:00:04.4]} 56. Nh2 {[%clk 0:00:07.1]} 56...
Kf6 {[%clk 0:00:04.3]} 57. Kf4 {[%clk 0:00:07.4]} 57... Bf5 {[%clk 0:00:04.7]}
58. Kg3 {[%clk 0:00:07.2]} 58... Be6 {[%clk 0:00:04.6]} 59. Ng4+ {[%clk
0:00:06.9]} 59... Ke7 {[%clk 0:00:05.1]} 60. Nh2 {[%clk 0:00:07.1]} 60... Kd6
{[%clk 0:00:05.2]} 61. h4 {[%clk 0:00:07.6]} 61... Ke5 {[%clk 0:00:04.2]} 62. h5
{[%clk 0:00:08]} 62... Bd5 {[%clk 0:00:03.7]} 63. Ng4+ {[%clk 0:00:07.2]} 63...
Kf5 {[%clk 0:00:03.2]} 64. Nh2 {[%clk 0:00:08.1]} 64... Kg5 {[%clk 0:00:03.4]}
65. Kg2 {[%clk 0:00:07.5]} 65... Bxf3+ {[%clk 0:00:02.5]} 66. Nxf3+ {[%clk
0:00:07.3]} 66... Kxh5 {[%clk 0:00:03.4]} 67. Kg3 {[%clk 0:00:07.9]} 67... Kg6
{[%clk 0:00:03.7]} 68. Kf4 {[%clk 0:00:08.2]} 68... Kf6 {[%clk 0:00:04.4]} 69.
Ke4 {[%clk 0:00:07.9]} 69... Ra3 {[%clk 0:00:04.6]} 70. Nd4 {[%clk 0:00:07.9]}
70... Rh3 {[%clk 0:00:05.3]} 71. Kd5 {[%clk 0:00:07.7]} 71... Rh5+ {[%clk
0:00:05.1]} 72. Ke4 {[%clk 0:00:07.7]} 72... Rh1 {[%clk 0:00:06]} 73. Kd5 {[%clk
0:00:07.9]} 73... Re1 {[%clk 0:00:06]} 74. Kd6 {[%clk 0:00:06.7]} 74... Rd1
{[%clk 0:00:05.8]} 75. Kd5 {[%clk 0:00:06.2]} 75... Rd2 {[%clk 0:00:06.5]} 76.
Ke4 {[%clk 0:00:06.2]} 76... Rh2 {[%clk 0:00:07]} 77. Kd5 {[%clk 0:00:06.4]}
77... Ke7 {[%clk 0:00:07.6]} 78. Ke5 {[%clk 0:00:06.4]} 78... Rh5+ {[%clk
0:00:06.3]} 79. Nf5+ {[%clk 0:00:06]} 79... Kd7 {[%clk 0:00:06.8]} 80. Kf4
{[%clk 0:00:06.2]} 80... Rh1 {[%clk 0:00:06.2]} 81. Ke5 {[%clk 0:00:06.2]} 81...
Re1+ {[%clk 0:00:06.7]} 82. Kd5 {[%clk 0:00:06.4]} 82... Re2 {[%clk 0:00:06.6]}
83. Nd4 {[%clk 0:00:06.8]} 83... Re8 {[%clk 0:00:06.8]} 84. Nf5 {[%clk
0:00:06.6]} 84... Ra8 {[%clk 0:00:06.7]} 85. Nd4 {[%clk 0:00:06.8]} 85... Ra5+
{[%clk 0:00:07.4]} 86. Ke4 {[%clk 0:00:07.3]} 86... Kd6 {[%clk 0:00:07.8]} 87.
Nf5+ {[%clk 0:00:07.8]} 87... Ke6 {[%clk 0:00:07.6]} 88. Nd4+ {[%clk 0:00:08.5]}
88... Kf6 {[%clk 0:00:08.5]} 89. Kd3 {[%clk 0:00:08.2]} 89... Rc5 {[%clk
0:00:08.8]} 90. Ke4 {[%clk 0:00:08]} 90... Rc8 {[%clk 0:00:09.1]} 91. Nf3 {[%clk
0:00:07.9]} 91... Re8+ {[%clk 0:00:07.9]} 92. Kf4 {[%clk 0:00:08.2]} 92... Re6
{[%clk 0:00:07]} 93. Nd4 {[%clk 0:00:07.8]} 93... Re1 {[%clk 0:00:07.6]} 94. Nf3
{[%clk 0:00:08.2]} 94... Ra1 {[%clk 0:00:08.4]} 95. Nd4 {[%clk 0:00:07.9]} 95...
Ra3 {[%clk 0:00:09.1]} 96. Ke4 {[%clk 0:00:08.2]} 96... Rh3 {[%clk 0:00:08.4]}
97. Kd5 {[%clk 0:00:08.6]} 97... Rh5+ {[%clk 0:00:06.4]} 1/2-1/2

[Event "Late-Titled-Tuesday-Blitz-August-29-2023"]
[Site "Chess.com"]
[Date "2023.08.29"]
[Round "3"]
[White "hsd2016"]
[Black "GiorgianBarbosa"]
[Result "0-1"]
[WhiteElo "2268"]
[BlackElo "2425"]
[TimeControl "180+1"]
[EndTime "14:22:51 PDT"]
[Termination "GiorgianBarbosa won by resignation"]

1. e4 {[%clk 0:03:00.9]} 1... c6 {[%clk 0:02:56.3]} 2. Nf3 {[%clk 0:02:58.1]}
2... d5 {[%clk 0:02:57.2]} 3. Nc3 {[%clk 0:02:57.5]} 3... dxe4 {[%clk
0:02:55.4]} 4. Nxe4 {[%clk 0:02:57.3]} 4... Nf6 {[%clk 0:02:56.3]} 5. Qe2 {[%clk
0:02:57.6]} 5... Bf5 {[%clk 0:02:53.1]} 6. Nxf6+ {[%clk 0:02:53.5]} 6... gxf6
{[%clk 0:02:54]} 7. d3 {[%clk 0:02:53.4]} 7... e6 {[%clk 0:02:53.8]} 8. Bf4
{[%clk 0:02:53.4]} 8... Nd7 {[%clk 0:02:48.6]} 9. Qd2 {[%clk 0:02:52.9]} 9...
Qb6 {[%clk 0:02:46.2]} 10. c3 {[%clk 0:02:50.1]} 10... O-O-O {[%clk 0:02:43.1]}
11. d4 {[%clk 0:02:50.2]} 11... e5 {[%clk 0:02:23.7]} 12. dxe5 {[%clk
0:02:38.2]} 12... Nxe5 {[%clk 0:02:24.6]} 13. Qc1 {[%clk 0:02:22.5]} 13... Nxf3+
{[%clk 0:02:16]} 14. gxf3 {[%clk 0:02:23.4]} 14... Bc5 {[%clk 0:02:16.1]} 15.
Bg3 {[%clk 0:02:20.1]} 15... Rhe8+ {[%clk 0:02:14.8]} 16. Be2 {[%clk 0:02:19.6]}
0-1

[Event "Late-Titled-Tuesday-Blitz-August-29-2023"]
[Site "Chess.com"]
[Date "2023.08.29"]
[Round "3"]
[White "adiosabu"]
[Black "Dzidzik2203"]
[Result "1-0"]
[WhiteElo "2585"]
[BlackElo "2353"]
[TimeControl "180+1"]
[EndTime "14:23:41 PDT"]
[Termination "adiosabu won by resignation"]

1. d4 {[%clk 0:02:50.2]} 1... Nf6 {[%clk 0:02:59.5]} 2. Nf3 {[%clk 0:02:48.2]}
2... g6 {[%clk 0:02:59.6]} 3. g3 {[%clk 0:02:48]} 3... Bg7 {[%clk 0:03:00]} 4.
Bg2 {[%clk 0:02:48.7]} 4... O-O {[%clk 0:03:00.4]} 5. O-O {[%clk 0:02:49.2]}
5... d5 {[%clk 0:03:00.9]} 6. Ne5 {[%clk 0:02:45.8]} 6... c6 {[%clk 0:02:59.6]}
7. Nd2 {[%clk 0:02:41.2]} 7... Nfd7 {[%clk 0:02:58.6]} 8. f4 {[%clk 0:02:39.5]}
8... f6 {[%clk 0:02:55.7]} 9. Nd3 {[%clk 0:02:36.1]} 9... e5 {[%clk 0:02:52.9]}
10. dxe5 {[%clk 0:02:07.2]} 10... fxe5 {[%clk 0:02:52.9]} 11. e4 {[%clk
0:02:07.6]} 11... exf4 {[%clk 0:02:48.8]} 12. Nxf4 {[%clk 0:02:08.5]} 12... Nf6
{[%clk 0:02:39.8]} 13. exd5 {[%clk 0:02:03.7]} 13... cxd5 {[%clk 0:02:40.7]} 14.
Nb3 {[%clk 0:02:01.4]} 14... Nc6 {[%clk 0:02:40]} 15. Nxd5 {[%clk 0:01:58.1]}
15... Nxd5 {[%clk 0:02:37.4]} 16. Qxd5+ {[%clk 0:01:57]} 16... Qxd5 {[%clk
0:02:37.2]} 17. Bxd5+ {[%clk 0:01:57.6]} 17... Kh8 {[%clk 0:02:38.1]} 18. Rxf8+
{[%clk 0:01:55.6]} 18... Bxf8 {[%clk 0:02:39]} 19. Bg5 {[%clk 0:01:50.2]} 19...
Bg7 {[%clk 0:02:36.5]} 20. Re1 {[%clk 0:01:42.6]} 20... Bf5 {[%clk 0:02:33.6]}
21. c3 {[%clk 0:01:42.6]} 21... Ne5 {[%clk 0:02:32.6]} 22. Nd4 {[%clk
0:01:35.5]} 22... Rd8 {[%clk 0:02:25.6]} 23. Bxd8 {[%clk 0:01:34.4]} 1-0

[Event "Late-Titled-Tuesday-Blitz-August-29-2023"]
[Site "Chess.com"]
[Date "2023.08.29"]
[Round "3"]
[White "koziororo"]
[Black "Colombiano07"]
[Result "0-1"]
[WhiteElo "2584"]
[BlackElo "2443"]
[TimeControl "180+1"]
[EndTime "14:24:32 PDT"]
[Termination "Colombiano07 won by resignation"]

1. Na3 {[%clk 0:03:00.9]} 1... d5 {[%clk 0:02:58]} 2. e4 {[%clk 0:03:00.4]} 2...
dxe4 {[%clk 0:02:57.3]} 3. d3 {[%clk 0:02:59.9]} 3... Nf6 {[%clk 0:02:56.5]} 4.
Bg5 {[%clk 0:02:58.4]} 4... Nbd7 {[%clk 0:02:55.6]} 5. Qd2 {[%clk 0:02:48.7]}
5... g6 {[%clk 0:02:53.6]} 6. O-O-O {[%clk 0:02:48]} 6... Bg7 {[%clk 0:02:53.6]}
7. h4 {[%clk 0:02:45.2]} 7... h6 {[%clk 0:02:52.9]} 8. Be3 {[%clk 0:02:44.9]}
8... c6 {[%clk 0:02:50.2]} 9. Nh3 {[%clk 0:02:44.5]} 9... Qc7 {[%clk 0:02:45.3]}
10. dxe4 {[%clk 0:02:39.7]} 10... Nxe4 {[%clk 0:02:44.4]} 11. Qb4 {[%clk
0:02:40.3]} 11... Nd6 {[%clk 0:02:39.5]} 12. Bd3 {[%clk 0:02:40.3]} 12... a5
{[%clk 0:02:38.1]} 13. Qd2 {[%clk 0:02:40.1]} 13... Nf6 {[%clk 0:02:34.5]} 14.
Nc4 {[%clk 0:02:36.7]} 14... Nd5 {[%clk 0:02:33.3]} 15. Bc5 {[%clk 0:02:33.3]}
15... O-O {[%clk 0:02:28.8]} 16. h5 {[%clk 0:02:32.2]} 16... g5 {[%clk
0:02:23.2]} 17. f4 {[%clk 0:02:32.3]} 17... Nxc4 {[%clk 0:02:20.4]} 18. Bxc4
{[%clk 0:02:31.9]} 18... Nxf4 {[%clk 0:02:20.6]} 19. Nxf4 {[%clk 0:02:31]} 19...
Qxf4 {[%clk 0:02:21.5]} 20. Qxf4 {[%clk 0:02:30.7]} 20... gxf4 {[%clk
0:02:22.4]} 21. Bxe7 {[%clk 0:02:30.6]} 21... Re8 {[%clk 0:02:23]} 22. Bd6
{[%clk 0:02:28.2]} 22... Bg4 {[%clk 0:02:20]} 23. Rde1 {[%clk 0:02:27.2]} 23...
f3 {[%clk 0:02:19.4]} 24. Rxe8+ {[%clk 0:02:17.3]} 24... Rxe8 {[%clk 0:02:17.7]}
25. Rf1 {[%clk 0:02:18.2]} 25... Bxh5 {[%clk 0:02:15.4]} 26. gxf3 {[%clk
0:02:17]} 26... b5 {[%clk 0:02:12.3]} 27. Bd3 {[%clk 0:02:16.6]} 27... Bg6
{[%clk 0:02:11.3]} 28. a4 {[%clk 0:02:04.6]} 28... Bxd3 {[%clk 0:02:09.9]} 29.
cxd3 {[%clk 0:02:05.5]} 29... bxa4 {[%clk 0:02:10.4]} 30. Bc7 {[%clk 0:02:05.6]}
30... Re2 {[%clk 0:02:06.5]} 31. Bxa5 {[%clk 0:02:05.4]} 31... Bxb2+ {[%clk
0:02:04.1]} 32. Kb1 {[%clk 0:02:05.3]} 32... a3 {[%clk 0:02:04.5]} 33. Rg1+
{[%clk 0:01:58.6]} 33... Kh7 {[%clk 0:02:03.8]} 34. Rg4 {[%clk 0:01:43.2]} 34...
a2+ {[%clk 0:02:00.5]} 35. Kxa2 {[%clk 0:01:43.6]} 35... Bc3+ {[%clk 0:02:00.8]}
36. Kb3 {[%clk 0:01:44.2]} 36... Bxa5 {[%clk 0:02:01.1]} 37. Rc4 {[%clk
0:01:44.6]} 37... Re3 {[%clk 0:01:59.3]} 38. Rxc6 {[%clk 0:01:44.7]} 38... Rxd3+
{[%clk 0:01:58]} 39. Kc4 {[%clk 0:01:45.6]} 39... Rc3+ {[%clk 0:01:57.4]} 0-1